[Event "*** Titled Tuesday 3|2 Blitz"]
[Site "Chess.com"]
[Date "2016.05.03"]
[Round "4"]
[White "Yaacovn"]
[Black "pKiLz5Rn9b"]
[Result "1-0"]
[WhiteElo "2558"]
[BlackElo "2388"]
[TimeControl "180+2"]
[EndTime "11:45:10 PDT"]
[Termination "Yaacovn won by resignation"]

1. d4 {[%clk 0:03:01.9]} 1... e6 {[%clk 0:02:57.3]} 2. Nf3 {[%clk 0:03:02.7]}
2... Nf6 {[%clk 0:02:58.5]} 3. c4 {[%clk 0:03:03.2]} 3... b6 {[%clk 0:02:59.8]}
4. g3 {[%clk 0:03:04.4]} 4... Bb7 {[%clk 0:03:00.9]} 5. Bg2 {[%clk 0:03:05.9]}
5... Be7 {[%clk 0:03:02.3]} 6. O-O {[%clk 0:03:07.3]} 6... d5 {[%clk 0:03:03.9]}
7. Nc3 {[%clk 0:03:06.7]} 7... O-O {[%clk 0:03:01.3]} 8. Ne5 {[%clk 0:03:04.4]}
8... Na6 {[%clk 0:03:02.6]} 9. Bg5 {[%clk 0:03:01.5]} 9... Ne4 {[%clk
0:03:02.2]} 10. Bxe7 {[%clk 0:03:02.4]} 10... Qxe7 {[%clk 0:03:04.1]} 11. cxd5
{[%clk 0:03:03.9]} 11... exd5 {[%clk 0:03:05.3]} 12. Rc1 {[%clk 0:03:02.9]}
12... c5 {[%clk 0:03:03.6]} 13. e3 {[%clk 0:03:03.5]} 13... Rfd8 {[%clk
0:03:01.1]} 14. Re1 {[%clk 0:02:55.6]} 14... Nc7 {[%clk 0:02:58.8]} 15. Qc2
{[%clk 0:02:52.7]} 15... Nxc3 {[%clk 0:02:41.2]} 16. Qxc3 {[%clk 0:02:51.9]}
16... Ne6 {[%clk 0:02:38.6]} 17. Red1 {[%clk 0:02:45.8]} 17... Rac8 {[%clk
0:02:38.4]} 18. Qa3 {[%clk 0:02:43.9]} 18... Qc7 {[%clk 0:02:37.3]} 19. b3
{[%clk 0:02:32.7]} 19... Qb8 {[%clk 0:02:30.2]} 20. Bh3 {[%clk 0:02:27.4]} 20...
cxd4 {[%clk 0:02:22.8]} 21. Bxe6 {[%clk 0:02:27.7]} 21... Rxc1 {[%clk
0:01:55.8]} 22. Rxc1 {[%clk 0:02:18]} 22... Qxe5 {[%clk 0:01:44.4]} 23. Qe7
{[%clk 0:02:18.3]} 23... Rf8 {[%clk 0:01:44.3]} 24. Bxf7+ {[%clk 0:02:19.1]} 1-0

[Event "*** Titled Tuesday 3|2 Blitz"]
[Site "Chess.com"]
[Date "2016.05.03"]
[Round "4"]
[White "SabinaFoisor"]
[Black "Fariasov-inactive"]
[Result "1-0"]
[WhiteElo "2211"]
[BlackElo "2178"]
[TimeControl "180+2"]
[EndTime "11:45:16 PDT"]
[Termination "SabinaFoisor won by resignation"]

1. d4 {[%clk 0:02:56.1]} 1... c5 {[%clk 0:03:01]} 2. d5 {[%clk 0:02:56.2]} 2...
d6 {[%clk 0:03:02.2]} 3. e4 {[%clk 0:02:57]} 3... g6 {[%clk 0:03:03.6]} 4. Nc3
{[%clk 0:02:58]} 4... Bg7 {[%clk 0:03:05]} 5. Nf3 {[%clk 0:02:59.3]} 5... Bg4
{[%clk 0:03:04.6]} 6. Be2 {[%clk 0:02:58.1]} 6... Bxf3 {[%clk 0:03:05.6]} 7.
Bxf3 {[%clk 0:02:59.3]} 7... Nf6 {[%clk 0:03:06.3]} 8. O-O {[%clk 0:03:00.1]}
8... O-O {[%clk 0:03:07.3]} 9. Be2 {[%clk 0:02:59.3]} 9... a6 {[%clk 0:03:08]}
10. a4 {[%clk 0:02:59.5]} 10... b6 {[%clk 0:03:09.3]} 11. h3 {[%clk 0:02:56.2]}
11... e6 {[%clk 0:03:09.8]} 12. Bg5 {[%clk 0:02:53.8]} 12... h6 {[%clk
0:03:10.5]} 13. Bh4 {[%clk 0:02:54.2]} 13... Nbd7 {[%clk 0:03:09]} 14. dxe6
{[%clk 0:02:53.7]} 14... fxe6 {[%clk 0:03:10.2]} 15. Qxd6 {[%clk 0:02:54.4]}
15... Qe8 {[%clk 0:03:08]} 16. Rad1 {[%clk 0:02:48.8]} 16... Rd8 {[%clk
0:03:07.1]} 17. e5 {[%clk 0:02:43.1]} 17... g5 {[%clk 0:02:45.2]} 18. exf6
{[%clk 0:02:38.2]} 18... Nxf6 {[%clk 0:02:45.4]} 19. Qxd8 {[%clk 0:02:23.3]}
19... Qxd8 {[%clk 0:02:46.4]} 20. Rxd8 {[%clk 0:02:15.6]} 20... Rxd8 {[%clk
0:02:47.5]} 21. Bg3 {[%clk 0:02:14.5]} 21... Rd2 {[%clk 0:02:48.2]} 22. Bd3
{[%clk 0:02:08.5]} 22... c4 {[%clk 0:02:49]} 23. Nb1 {[%clk 0:02:03.5]} 23...
cxd3 {[%clk 0:02:41.9]} 24. Nxd2 {[%clk 0:02:04.1]} 24... dxc2 {[%clk
0:02:42.7]} 25. Rc1 {[%clk 0:02:04.9]} 25... Nd5 {[%clk 0:02:41.3]} 26. Rxc2
{[%clk 0:02:05.6]} 26... Nb4 {[%clk 0:02:42.3]} 27. Rc8+ {[%clk 0:02:05.1]}
27... Kh7 {[%clk 0:02:43]} 28. b3 {[%clk 0:02:06.3]} 28... Kg6 {[%clk
0:02:42.4]} 29. Nc4 {[%clk 0:02:07]} 29... b5 {[%clk 0:02:43.1]} 30. axb5 {[%clk
0:02:08.9]} 30... axb5 {[%clk 0:02:44.3]} 31. Nd6 {[%clk 0:02:09.4]} 31... h5
{[%clk 0:02:44.9]} 32. Nxb5 {[%clk 0:02:09.1]} 32... h4 {[%clk 0:02:45.5]} 33.
Bd6 {[%clk 0:02:10.1]} 33... Nd5 {[%clk 0:02:45.8]} 34. Nc7 {[%clk 0:02:09.4]}
34... Kf5 {[%clk 0:02:46.1]} 1-0

[Event "*** Titled Tuesday 3|2 Blitz"]
[Site "Chess.com"]
[Date "2016.05.03"]
[Round "4"]
[White "Inopov"]
[Black "Er_is_geen_hoop_meer"]
[Result "1-0"]
[WhiteElo "2434"]
[BlackElo "2335"]
[TimeControl "180+2"]
[EndTime "11:45:25 PDT"]
[Termination "Inopov won by resignation"]

1. d4 {[%clk 0:02:58.5]} 1... Nf6 {[%clk 0:02:58.6]} 2. c4 {[%clk 0:02:58.8]}
2... g6 {[%clk 0:02:58.3]} 3. Nc3 {[%clk 0:02:59.5]} 3... Bg7 {[%clk 0:02:59.9]}
4. e4 {[%clk 0:02:59.7]} 4... O-O {[%clk 0:03:01.8]} 5. h3 {[%clk 0:03:01.2]}
5... d6 {[%clk 0:03:01.4]} 6. Be3 {[%clk 0:03:02.2]} 6... e5 {[%clk 0:03:01.7]}
7. d5 {[%clk 0:03:03]} 7... Nh5 {[%clk 0:03:01.4]} 8. Be2 {[%clk 0:03:00.6]}
8... Nf4 {[%clk 0:03:02.3]} 9. Bf3 {[%clk 0:03:01.6]} 9... c5 {[%clk 0:03:03]}
10. g3 {[%clk 0:03:00]} 10... Nh5 {[%clk 0:03:02.2]} 11. Bxh5 {[%clk 0:03:00.9]}
11... gxh5 {[%clk 0:03:04.1]} 12. Qxh5 {[%clk 0:03:01.4]} 12... f5 {[%clk
0:03:06]} 13. Nf3 {[%clk 0:02:55]} 13... fxe4 {[%clk 0:03:03.7]} 14. Ng5 {[%clk
0:02:54]} 14... Bf5 {[%clk 0:03:05.6]} 15. O-O-O {[%clk 0:02:09.5]} 15... a6
{[%clk 0:02:57.8]} 16. Ncxe4 {[%clk 0:01:50.3]} 16... b5 {[%clk 0:02:58.1]} 17.
Ne6 {[%clk 0:01:50.6]} 17... Bxe6 {[%clk 0:02:56.3]} 18. dxe6 {[%clk 0:01:52.3]}
18... Nc6 {[%clk 0:02:48.5]} 19. Rxd6 {[%clk 0:01:47.6]} 19... Qa5 {[%clk
0:02:44.9]} 20. Ng5 {[%clk 0:01:42]} 20... h6 {[%clk 0:02:45.2]} 21. Qg6 {[%clk
0:01:43.1]} 21... Rf6 {[%clk 0:02:33.7]} 22. Qh7+ {[%clk 0:01:43.1]} 22... Kf8
{[%clk 0:02:35.1]} 23. e7+ {[%clk 0:01:34.2]} 23... Nxe7 {[%clk 0:02:34.2]} 24.
Rxf6+ {[%clk 0:01:34.3]} 24... Ke8 {[%clk 0:02:33.1]} 25. Qxg7 {[%clk
0:01:34.4]} 25... Qxa2 {[%clk 0:02:33.2]} 26. Rf8+ {[%clk 0:01:30.7]} 26... Kd7
{[%clk 0:02:34.4]} 27. Rd1+ {[%clk 0:01:31.6]} 27... Kc6 {[%clk 0:02:35.6]} 28.
Rf6+ {[%clk 0:01:27.8]} 1-0

[Event "*** Titled Tuesday 3|2 Blitz"]
[Site "Chess.com"]
[Date "2016.05.03"]
[Round "4"]
[White "Tesla17"]
[Black "Wolverine_master"]
[Result "0-1"]
[WhiteElo "2219"]
[BlackElo "2028"]
[TimeControl "180+2"]
[EndTime "11:46:05 PDT"]
[Termination "Wolverine_master won by resignation"]

1. d4 {[%clk 0:03:01.9]} 1... Nf6 {[%clk 0:03:00.3]} 2. c4 {[%clk 0:03:02.4]}
2... c5 {[%clk 0:03:00.9]} 3. d5 {[%clk 0:03:03.1]} 3... b5 {[%clk 0:03:01.4]}
4. cxb5 {[%clk 0:03:03.4]} 4... a6 {[%clk 0:03:02.3]} 5. bxa6 {[%clk 0:03:04]}
5... Bxa6 {[%clk 0:03:03.4]} 6. Nc3 {[%clk 0:03:04.4]} 6... d6 {[%clk
0:03:04.4]} 7. Nf3 {[%clk 0:03:04.2]} 7... g6 {[%clk 0:03:05]} 8. g3 {[%clk
0:03:05.3]} 8... Bg7 {[%clk 0:03:05.8]} 9. Bg2 {[%clk 0:03:06.5]} 9... Nbd7
{[%clk 0:03:06.8]} 10. Rb1 {[%clk 0:03:07.2]} 10... Qa5 {[%clk 0:03:05.7]} 11.
O-O {[%clk 0:03:03.7]} 11... O-O {[%clk 0:03:05.8]} 12. Bd2 {[%clk 0:03:03.2]}
12... Rfb8 {[%clk 0:03:02.5]} 13. b3 {[%clk 0:02:56.7]} 13... Ng4 {[%clk
0:03:00.4]} 14. Qc1 {[%clk 0:02:41.3]} 14... Bxc3 {[%clk 0:02:28.7]} 15. Bxc3
{[%clk 0:02:41.1]} 15... Qxa2 {[%clk 0:02:29.1]} 16. Rb2 {[%clk 0:02:33.1]}
16... Qa3 {[%clk 0:02:29.8]} 17. h3 {[%clk 0:02:26.5]} 17... Ngf6 {[%clk
0:02:22.2]} 18. Qh6 {[%clk 0:01:56.6]} 18... Rxb3 {[%clk 0:02:16.4]} 19. Rxb3
{[%clk 0:01:54.4]} 19... Qxb3 {[%clk 0:02:17.3]} 20. Ba1 {[%clk 0:01:45.7]}
20... Bxe2 {[%clk 0:02:17.3]} 21. Ng5 {[%clk 0:01:11]} 21... Bxf1 {[%clk
0:02:12.7]} 22. Bxf6 {[%clk 0:01:07.2]} 22... Nxf6 {[%clk 0:02:07.1]} 23. Bxf1
{[%clk 0:01:08.9]} 23... Ra1 {[%clk 0:02:02.7]} 0-1

[Event "*** Titled Tuesday 3|2 Blitz"]
[Site "Chess.com"]
[Date "2016.05.03"]
[Round "4"]
[White "APL2001"]
[Black "wanyaland"]
[Result "1-0"]
[WhiteElo "2171"]
[BlackElo "2247"]
[TimeControl "180+2"]
[EndTime "11:46:53 PDT"]
[Termination "APL2001 won on time"]

1. e4 {[%clk 0:02:31.5]} 1... c5 {[%clk 0:02:59.2]} 2. Nf3 {[%clk 0:02:24.6]}
2... e6 {[%clk 0:02:58.2]} 3. d4 {[%clk 0:02:25.4]} 3... cxd4 {[%clk 0:03:00.1]}
4. Nxd4 {[%clk 0:02:26.5]} 4... a6 {[%clk 0:03:01.4]} 5. c4 {[%clk 0:02:23.5]}
5... Qc7 {[%clk 0:03:02.1]} 6. Nc3 {[%clk 0:02:24.1]} 6... Nf6 {[%clk
0:03:02.3]} 7. Be2 {[%clk 0:02:12.7]} 7... Nc6 {[%clk 0:03:02.6]} 8. O-O {[%clk
0:02:12.8]} 8... Bc5 {[%clk 0:03:01.5]} 9. Be3 {[%clk 0:02:12.1]} 9... Ne5
{[%clk 0:03:00.2]} 10. f4 {[%clk 0:01:59.2]} 10... Nc6 {[%clk 0:03:00.6]} 11.
Bf2 {[%clk 0:01:48.7]} 11... d6 {[%clk 0:03:00.6]} 12. b3 {[%clk 0:01:42.8]}
12... Bd7 {[%clk 0:02:58.5]} 13. Qd3 {[%clk 0:01:40.4]} 1-0

[Event "*** Titled Tuesday 3|2 Blitz"]
[Site "Chess.com"]
[Date "2016.05.03"]
[Round "4"]
[White "Aguiar94"]
[Black "Badouuu"]
[Result "1-0"]
[WhiteElo "2397"]
[BlackElo "2002"]
[TimeControl "180+2"]
[EndTime "11:46:54 PDT"]
[Termination "Aguiar94 won by resignation"]

1. e4 {[%clk 0:03:01.9]} 1... c5 {[%clk 0:02:59.1]} 2. Nf3 {[%clk 0:03:02.8]}
2... Nc6 {[%clk 0:03:00.4]} 3. d4 {[%clk 0:03:03.1]} 3... cxd4 {[%clk
0:03:02.3]} 4. Nxd4 {[%clk 0:03:05]} 4... e5 {[%clk 0:03:03.1]} 5. Nb5 {[%clk
0:03:05.4]} 5... d6 {[%clk 0:03:00.4]} 6. N1c3 {[%clk 0:03:04.1]} 6... a6 {[%clk
0:02:58.8]} 7. Na3 {[%clk 0:03:04.7]} 7... b5 {[%clk 0:03:00.7]} 8. Nd5 {[%clk
0:03:05.5]} 8... Nge7 {[%clk 0:03:02.1]} 9. c4 {[%clk 0:03:06.5]} 9... Nd4
{[%clk 0:03:02.3]} 10. cxb5 {[%clk 0:03:07]} 10... Nxd5 {[%clk 0:03:01.7]} 11.
exd5 {[%clk 0:03:08.9]} 11... Be7 {[%clk 0:03:03.6]} 12. bxa6 {[%clk 0:03:08.7]}
12... Qa5+ {[%clk 0:03:03.5]} 13. Bd2 {[%clk 0:03:06.3]} 13... Qxd5 {[%clk
0:03:05.4]} 14. Nc4 {[%clk 0:02:46.1]} 14... Bxa6 {[%clk 0:03:00.9]} 15. Ne3
{[%clk 0:02:34.6]} 15... Qc6 {[%clk 0:02:44.9]} 16. Rc1 {[%clk 0:02:31.9]} 16...
Qd7 {[%clk 0:02:43.3]} 17. Bxa6 {[%clk 0:02:24.8]} 17... Rxa6 {[%clk 0:02:43.8]}
18. a3 {[%clk 0:02:23.4]} 18... O-O {[%clk 0:02:44.3]} 19. Bc3 {[%clk 0:02:15]}
19... Ne6 {[%clk 0:02:32.4]} 20. O-O {[%clk 0:02:11.9]} 20... Raa8 {[%clk
0:02:28.7]} 21. Bxe5 {[%clk 0:02:11.9]} 21... Bg5 {[%clk 0:02:10.1]} 22. Qxd6
{[%clk 0:02:08.1]} 22... Qb7 {[%clk 0:02:08]} 23. Qc6 {[%clk 0:01:58.9]} 23...
Qb3 {[%clk 0:02:01.7]} 24. Qc3 {[%clk 0:01:58.5]} 24... Qb7 {[%clk 0:01:59.5]}
25. Nf5 {[%clk 0:01:46.2]} 25... Bxc1 {[%clk 0:01:56.9]} 26. Bxg7 {[%clk
0:01:45.9]} 26... Qc7 {[%clk 0:01:24.7]} 27. Rxc1 {[%clk 0:01:32.6]} 27... Qxc3
{[%clk 0:01:24]} 28. Bxc3 {[%clk 0:01:34.5]} 28... Rfc8 {[%clk 0:01:19.8]} 29.
Ne7+ {[%clk 0:01:33.6]} 29... Kf8 {[%clk 0:01:20.5]} 30. Nxc8 {[%clk 0:01:35.5]}
30... Rxc8 {[%clk 0:01:21.5]} 31. Bb4+ {[%clk 0:01:36.8]} 1-0

[Event "*** Titled Tuesday 3|2 Blitz"]
[Site "Chess.com"]
[Date "2016.05.03"]
[Round "4"]
[White "Keranke"]
[Black "VSERGUEI"]
[Result "0-1"]
[WhiteElo "2589"]
[BlackElo "2480"]
[TimeControl "180+2"]
[EndTime "11:47:05 PDT"]
[Termination "VSERGUEI won by resignation"]

1. d4 {[%clk 0:03:01.9]} 1... d5 {[%clk 0:02:55.6]} 2. Bf4 {[%clk 0:03:02.9]}
2... c5 {[%clk 0:02:54]} 3. e3 {[%clk 0:03:03.6]} 3... Nc6 {[%clk 0:02:53.5]} 4.
Nc3 {[%clk 0:03:04]} 4... a6 {[%clk 0:02:51.1]} 5. Nf3 {[%clk 0:03:04.1]} 5...
e6 {[%clk 0:02:49]} 6. a3 {[%clk 0:02:57.3]} 6... Nf6 {[%clk 0:02:48.9]} 7. Bd3
{[%clk 0:02:58.3]} 7... b5 {[%clk 0:02:48.4]} 8. O-O {[%clk 0:02:56.3]} 8... Bb7
{[%clk 0:02:48.5]} 9. dxc5 {[%clk 0:02:50.1]} 9... Bxc5 {[%clk 0:02:47.9]} 10.
e4 {[%clk 0:02:51.4]} 10... d4 {[%clk 0:02:46.3]} 11. Ne2 {[%clk 0:02:45.7]}
11... Rc8 {[%clk 0:02:38.2]} 12. e5 {[%clk 0:02:43.8]} 12... Nd5 {[%clk
0:02:38.2]} 13. Bg5 {[%clk 0:02:41.3]} 13... Qc7 {[%clk 0:02:37.8]} 14. Re1
{[%clk 0:02:28]} 14... Nxe5 {[%clk 0:02:34.5]} 15. Nexd4 {[%clk 0:02:19]} 15...
Nxd3 {[%clk 0:02:23.8]} 16. Qxd3 {[%clk 0:02:19.9]} 16... O-O {[%clk 0:02:23.9]}
17. Rad1 {[%clk 0:02:11.6]} 17... h6 {[%clk 0:02:22.2]} 18. Bh4 {[%clk
0:02:12.6]} 18... Nf4 {[%clk 0:02:21.6]} 19. Qe3 {[%clk 0:02:04.6]} 19... Bxd4
{[%clk 0:02:13.3]} 20. Rxd4 {[%clk 0:02:03.3]} 20... Nd5 {[%clk 0:02:09.9]} 21.
Qe4 {[%clk 0:01:15.7]} 21... Qxc2 {[%clk 0:02:08.1]} 22. Qg4 {[%clk 0:01:16.8]}
22... Qxb2 {[%clk 0:02:03.2]} 23. Ne5 {[%clk 0:01:12.5]} 23... f5 {[%clk
0:01:41.4]} 24. Qd1 {[%clk 0:01:08.5]} 24... Nc3 {[%clk 0:01:40.9]} 25. Qd3
{[%clk 0:01:03.4]} 25... Ne2+ {[%clk 0:01:35.7]} 26. Qxe2 {[%clk 0:01:04.3]}
26... Qxe2 {[%clk 0:01:28.6]} 0-1

[Event "*** Titled Tuesday 3|2 Blitz"]
[Site "Chess.com"]
[Date "2016.05.03"]
[Round "4"]
[White "Mischuk_D"]
[Black "Lector118"]
[Result "1-0"]
[WhiteElo "2467"]
[BlackElo "2298"]
[TimeControl "180+2"]
[EndTime "11:47:06 PDT"]
[Termination "Mischuk_D won by resignation"]

1. e4 {[%clk 0:02:57.6]} 1... c5 {[%clk 0:03:00.2]} 2. Nf3 {[%clk 0:02:58.3]}
2... d6 {[%clk 0:03:01.5]} 3. d4 {[%clk 0:02:59.4]} 3... cxd4 {[%clk 0:03:03.4]}
4. Nxd4 {[%clk 0:03:01.2]} 4... Nf6 {[%clk 0:03:04.6]} 5. Nc3 {[%clk 0:03:02.5]}
5... Nc6 {[%clk 0:03:06.2]} 6. Bg5 {[%clk 0:03:02.7]} 6... e6 {[%clk 0:03:07.2]}
7. Qd2 {[%clk 0:03:02.9]} 7... Be7 {[%clk 0:03:07]} 8. O-O-O {[%clk 0:03:02.9]}
8... Nxd4 {[%clk 0:03:07.9]} 9. Qxd4 {[%clk 0:03:03.6]} 9... O-O {[%clk
0:03:09.6]} 10. f4 {[%clk 0:03:04.8]} 10... h6 {[%clk 0:03:10.4]} 11. Bh4 {[%clk
0:03:04]} 11... Qa5 {[%clk 0:03:11.3]} 12. e5 {[%clk 0:03:01.5]} 12... dxe5
{[%clk 0:03:07]} 13. Qxe5 {[%clk 0:02:50.3]} 13... b5 {[%clk 0:03:05.4]} 14.
Qxb5 {[%clk 0:02:48.7]} 14... Qc7 {[%clk 0:03:04.6]} 15. Qe5 {[%clk 0:02:49.5]}
15... Qb7 {[%clk 0:03:03]} 16. Bd3 {[%clk 0:02:42.7]} 16... Rb8 {[%clk
0:02:55.8]} 17. b3 {[%clk 0:02:41.8]} 17... Bd7 {[%clk 0:02:34.7]} 18. Ne4
{[%clk 0:02:16.8]} 18... Ng4 {[%clk 0:01:56]} 19. Qh5 {[%clk 0:02:04.9]} 19...
Bxh4 {[%clk 0:01:46.3]} 20. Qxh4 {[%clk 0:02:03.9]} 20... Ne3 {[%clk 0:01:47.3]}
21. Nc5 {[%clk 0:01:51.2]} 21... Qb4 {[%clk 0:01:11.8]} 22. Nxd7 {[%clk
0:01:50.6]} 22... Qa3+ {[%clk 0:01:12.5]} 23. Kd2 {[%clk 0:01:45.5]} 23... Nxd1
{[%clk 0:01:06.2]} 24. Rxd1 {[%clk 0:01:44.8]} 24... Qb4+ {[%clk 0:00:59.9]} 25.
Ke2 {[%clk 0:01:45]} 25... Qb7 {[%clk 0:00:55.3]} 26. Qf2 {[%clk 0:01:35.5]} 1-0

[Event "*** Titled Tuesday 3|2 Blitz"]
[Site "Chess.com"]
[Date "2016.05.03"]
[Round "4"]
[White "Aygehovit1992"]
[Black "Quinten94"]
[Result "0-1"]
[WhiteElo "2484"]
[BlackElo "2322"]
[TimeControl "180+2"]
[EndTime "11:47:18 PDT"]
[Termination "Quinten94 won by resignation"]

1. e4 {[%clk 0:03:01.9]} 1... c6 {[%clk 0:03:00.2]} 2. d4 {[%clk 0:03:02.3]}
2... d5 {[%clk 0:03:01.2]} 3. e5 {[%clk 0:03:03.9]} 3... Bf5 {[%clk 0:03:01.8]}
4. Nf3 {[%clk 0:03:05.5]} 4... e6 {[%clk 0:03:02]} 5. Be2 {[%clk 0:03:06.9]}
5... Nd7 {[%clk 0:03:02.9]} 6. O-O {[%clk 0:03:07.8]} 6... h6 {[%clk 0:03:04.6]}
7. Nbd2 {[%clk 0:03:08.3]} 7... Qc7 {[%clk 0:03:06.2]} 8. a4 {[%clk 0:03:07.5]}
8... Ne7 {[%clk 0:03:06]} 9. c4 {[%clk 0:03:07.6]} 9... g5 {[%clk 0:02:56.7]}
10. b4 {[%clk 0:03:06.7]} 10... Bg7 {[%clk 0:02:54.7]} 11. b5 {[%clk 0:03:06.6]}
11... c5 {[%clk 0:02:52.1]} 12. Ba3 {[%clk 0:03:05.7]} 12... O-O {[%clk
0:02:52]} 13. Rc1 {[%clk 0:03:01]} 13... b6 {[%clk 0:02:42.9]} 14. cxd5 {[%clk
0:02:56.6]} 14... Nxd5 {[%clk 0:02:40.3]} 15. Nb3 {[%clk 0:02:57.6]} 15... Nf4
{[%clk 0:02:36.4]} 16. Re1 {[%clk 0:02:37.3]} 16... Rfd8 {[%clk 0:02:33.8]} 17.
Bf1 {[%clk 0:02:36.3]} 17... Qb7 {[%clk 0:02:32.1]} 18. dxc5 {[%clk 0:02:29.3]}
18... bxc5 {[%clk 0:02:00.3]} 19. Na5 {[%clk 0:02:20.2]} 19... Qc7 {[%clk
0:01:54.1]} 20. Nc6 {[%clk 0:02:21]} 20... Nxe5 {[%clk 0:01:51.9]} 21. Nxd8
{[%clk 0:02:20.6]} 21... Rxd8 {[%clk 0:01:52.6]} 22. Qb3 {[%clk 0:02:16.8]}
22... Nfd3 {[%clk 0:01:32]} 23. Nxe5 {[%clk 0:01:59.4]} 23... Nxc1 {[%clk
0:01:17]} 24. Rxc1 {[%clk 0:02:00]} 24... Bxe5 {[%clk 0:01:18.7]} 25. Rxc5
{[%clk 0:02:00.8]} 25... Bxh2+ {[%clk 0:01:19.3]} 26. Kh1 {[%clk 0:02:02]} 26...
Qf4 {[%clk 0:01:13.9]} 27. Qf3 {[%clk 0:01:35.6]} 27... Qh4 {[%clk 0:01:08.6]}
28. g4 {[%clk 0:01:14.4]} 28... Bg3+ {[%clk 0:01:03.9]} 0-1

[Event "*** Titled Tuesday 3|2 Blitz"]
[Site "Chess.com"]
[Date "2016.05.03"]
[Round "4"]
[White "FLchessplayer"]
[Black "Pomoc"]
[Result "0-1"]
[WhiteElo "2078"]
[BlackElo "2094"]
[TimeControl "180+2"]
[EndTime "11:47:34 PDT"]
[Termination "Pomoc won by resignation"]

1. e4 {[%clk 0:02:58.6]} 1... c5 {[%clk 0:02:58]} 2. Nf3 {[%clk 0:02:58.5]} 2...
e6 {[%clk 0:02:58.4]} 3. d4 {[%clk 0:02:59.4]} 3... cxd4 {[%clk 0:02:59.6]} 4.
Nxd4 {[%clk 0:03:00.7]} 4... a6 {[%clk 0:03:00.6]} 5. Bd3 {[%clk 0:03:00]} 5...
Nf6 {[%clk 0:02:59.9]} 6. a3 {[%clk 0:02:56.4]} 6... Qc7 {[%clk 0:02:47.1]} 7.
Qe2 {[%clk 0:02:54.3]} 7... d6 {[%clk 0:02:46.1]} 8. c4 {[%clk 0:02:52.3]} 8...
g6 {[%clk 0:02:38.6]} 9. Be3 {[%clk 0:02:49.7]} 9... Bg7 {[%clk 0:02:38.7]} 10.
Nc3 {[%clk 0:02:50.6]} 10... O-O {[%clk 0:02:37.7]} 11. Rc1 {[%clk 0:02:51.2]}
11... Nbd7 {[%clk 0:02:25.3]} 12. f3 {[%clk 0:02:46.7]} 12... b6 {[%clk
0:02:21.2]} 13. O-O {[%clk 0:02:44]} 13... Bb7 {[%clk 0:02:21]} 14. Rfd1 {[%clk
0:02:45.1]} 14... Rac8 {[%clk 0:02:19.9]} 15. b3 {[%clk 0:02:44.4]} 15... Rfe8
{[%clk 0:02:17.9]} 16. Qf2 {[%clk 0:02:43.8]} 16... Qb8 {[%clk 0:02:10.5]} 17.
Bf1 {[%clk 0:02:43.2]} 17... d5 {[%clk 0:01:40.8]} 18. cxd5 {[%clk 0:02:40.1]}
18... exd5 {[%clk 0:01:41]} 19. exd5 {[%clk 0:02:40.3]} 19... b5 {[%clk
0:01:30.8]} 20. d6 {[%clk 0:02:36.7]} 20... Nd5 {[%clk 0:01:02.7]} 21. Nxd5
{[%clk 0:02:36.2]} 21... Bxd5 {[%clk 0:01:04.6]} 22. Rxc8 {[%clk 0:02:31.9]}
22... Rxc8 {[%clk 0:01:03.3]} 23. Nf5 {[%clk 0:02:27.6]} 23... Bxb3 {[%clk
0:00:42]} 24. Ne7+ {[%clk 0:02:25.6]} 24... Kh8 {[%clk 0:00:34.2]} 25. Rb1
{[%clk 0:02:19]} 25... Rc2 {[%clk 0:00:24.6]} 26. Qg3 {[%clk 0:02:04]} 26... Be6
{[%clk 0:00:24.9]} 27. Bf4 {[%clk 0:01:59.4]} 27... Qb6+ {[%clk 0:00:21.9]} 28.
Kh1 {[%clk 0:01:59.8]} 28... Rc3 {[%clk 0:00:17]} 29. a4 {[%clk 0:01:59.7]}
29... b4 {[%clk 0:00:17.2]} 30. h4 {[%clk 0:02:00.7]} 30... h5 {[%clk
0:00:16.7]} 31. Be5 {[%clk 0:01:59.3]} 31... Bxe5 {[%clk 0:00:15.7]} 32. Qxe5+
{[%clk 0:02:00.3]} 32... Nxe5 {[%clk 0:00:16.1]} 0-1